Cogmind - Beta 16 *** ADVENTURER MODE // 2026.01.27 @ 21:02:41 Player: Judas Result: Destroyed by D-53 Grenadier with Mini Grenade Launcher Performance ------------- Evolutions (1) 500 Regions Visited (3) 600 Robots Destroyed (7) 35 Value Destroyed (183) 183 Prototype IDs (0) 0 Alien Tech Used (0) 0 Bonus (0) 0 TOTAL SCORE: 1318 Bonus ------- None Cogmind --------- Core Integrity 0/400 Matter 300/300 Energy 43/100 System Corruption 0% Temperature Cool (0) Movement Core (200) Ox3 Location -9/Mines Parts ------- > --- POWER (1) -------- (None) > --- PROPULSION (3) --- (None) > --- UTILITY (3) ------ Medium Storage Unit > --- WEAPON (2) ------- (None) > --- INVENTORY (10) --- Light Ion Engine Wheel Armored Wheel Medium Storage Unit Signal Interpreter Targeting Computer EM Pulse Gun Heavy Assault Rifle Grenade Launcher Hammer Peak State ------------ > --- POWER ------------ Light Ion Engine > --- PROPULSION ------- Wheel Compact Wheel Compact Wheel > --- UTILITY ---------- Medium Storage Unit Weight Redist. System Shield Generator > --- WEAPON ----------- Medium Laser Autogun > --- INVENTORY -------- Light Ion Engine Wheel Armored Wheel Medium Storage Unit Signal Interpreter EM Pulse Gun Heavy Assault Rifle Grenade Launcher Hammer [Rating: 13] Favorites ----------- Power Light Ion Engine Engine Light Ion Engine Propulsion Compact Wheel Leg Aluminum Leg Wheel Compact Wheel Utility Weight Redist. System Device Weight Redist. System Storage Medium Storage Unit Weapon Medium Laser Energy Gun Medium Laser Ballistic Gun Autogun Build | -11 -10 -9 -9 ------- Run | Yrd Mat Mat Min Slots Evolved 2 | . . 2 . Power . | . . . . Propulsion 1 | . . 1 . Utility 1 | . . 1 . Weapon . | . . . . Parts Attached 8 | 3 2 3 . Power . | . . . . Engine . | . . . . Core . | . . . . Reactor . | . . . . Propulsion 3 | 2 . 1 . Treads . | . . . . Leg . | . . . . Wheel 3 | 2 . 1 . Hover . | . . . . Flight . | . . . . Utility 4 | 1 2 1 . Device 3 | 1 1 1 . Storage 1 | . 1 . . Processor . | . . . . Hackware . | . . . . Protection . | . . . . Artifact . | . . . . Weapon 1 | . . 1 . Energy Gun . | . . . . Energy Cannon . | . . . . Ballistic Gun 1 | . . 1 . Ballistic Cannon . | . . . . Launcher . | . . . . Special Weapon . | . . . . Impact Weapon . | . . . . Slashing Weapon . | . . . . Piercing Weapon . | . . . . Special Melee Weapon . | . . . . Unidentified Prototypes . | . . . . Parts Lost 8 | . . . 8 Power 1 | . . . 1 Propulsion 3 | . . . 3 Utility 2 | . . . 2 Weapon 2 | . . . 2 Highest Loss Streak 8 | . . . 8 To Critical Strikes . | . . . . Average Backups 7 | 6 7 7 9 Power 1 | 1 1 1 1 Propulsion 2 | 4 2 1 2 Utility 1 | . 1 2 2 Weapon 3 | 1 3 3 4 Tool/Special . | . . . . Unused Backups 23 | 4 7 . 12 Power 3 | . 1 . 2 Propulsion 8 | 4 2 . 2 Utility 4 | . 1 . 3 Weapon 8 | . 3 . 5 Tool/Special . | . . . . Average Slot Usage (%) 97 | . 100 98 88 Engine 12 | . 14 11 9 Wheel 29 | . 28 33 28 Device 16 | . 14 20 20 Storage 12 | . 14 11 11 Energy Gun 21 | . 28 16 9 Ballistic Gun 3 | . . 5 9 Peak Build Rating 13 | 7 8 13 13 Average Rating 9 | 6 7 11 11 On Entrance 8 | 6 7 8 13 Avg Prop Armor Cover (%) . | . . . . Naked Turns . | . . . . Heaviest Build 20 | 12 16 20 20 Greatest Support 48 | 32 38 48 48 Greatest Overweight (x) 1 | . . . 1 Average Overweight (x) . | . . . . Largest Inventory Capacity 10 | 8 10 10 10 Average Capacity 9 | 8 8 10 10 Most Carried 10 | 8 9 9 10 Average Carried 8 | 6 7 7 9 Final Capacity 10 | 8 10 10 10 Final Carried 10 | 6 8 9 10 Class Distribution -------------------- 100% | Mutant Dominant Class ---------------- Mutant | -10/Materials Mutant | -9/Materials Mutant | -9/Mines Resources | -11 -10 -9 -9 ----------- Run | Yrd Mat Mat Min Matter Collected 352 | 230 20 42 60 Remotely . | . . . . Salvage Created 449 | 84 140 108 117 Parts 18 | 4 8 6 . Haulers Intercepted 1 | . 1 . . Recyclers Shooed . | . . . . Parts Field Recycled . | . . . . Retrieved Matter . | . . . . Parts Self-Destructed . | . . . . Prevented . | . . . . Parts Restored . | . . . . Kills | -11 -10 -9 -9 ------- Run | Yrd Mat Mat Min Combat Hostiles Destroyed 11 | . 2 2 7 Guns 11 | . 2 2 7 Classes Destroyed 6 | 2 2 1 1 Tunneler 1 | 1 . . . Hauler 1 | . 1 . . Recycler 1 | 1 . . . Grunt 2 | . 2 . . Sentry 2 | . . 2 . Assembled 7 | . . . 7 Best Kill Streak 6 | 2 2 1 6 Combat Bots Only 6 | . 2 1 6 Max Kills in Single Turn 1 | 1 1 1 1 Gunslinging . | . . . . Exploded . | . . . . Melee . | . . . . Uniques/NPCs Destroyed . | . . . . Combat | -11 -10 -9 -9 -------- Run | Yrd Mat Mat Min Hostile Shots Fired 67 | . 9 12 46 Missed 14 | . 3 5 6 Hits 53 | . 6 7 40 Melee 1 | . . . 1 Projectile 52 | . 6 7 39 AOE 20 | . . . 20 Critical Strikes 1 | . . 1 . Damage Taken 919 | . 49 59 811 Core 427 | . 8 9 410 Absorbed by Shields 77 | . . 23 54 Ignored by Resistances 278 | . 16 23 239 Core Remaining (%) 98 | 100 96 . . Volleys Fired 37 | 3 12 6 16 Largest 2 | 2 2 2 2 Hottest 90 | 90 90 90 73 Shots Fired 73 | 6 24 12 31 Gun 73 | 6 24 12 31 Cannon . | . . . . Launcher . | . . . . Special . | . . . . Kinetic 19 | . . 3 16 Thermal 54 | 6 24 9 15 Explosive . | . . . . Electromagnetic . | . . . . Robot Hit Streak 14 | 4 12 14 12 Robot Miss Streak 3 | . 3 . 2 Penetration Max . | . . . . Secondary Targets 1 | . . . 1 Max Gunslinging Chain 1 | . . . 1 Shots Hit Robots 55 | 4 18 11 22 Core Hits 26 | 3 7 4 12 Critical Kills . | . . . . Critical Parts Destroyed . | . . . . Critical Strikes 2 | . 1 . 1 Burn 2 | . 1 . 1 Melee Attacks . | . . . . Impact . | . . . . Slashing . | . . . . Piercing . | . . . . Sneak Attacks . | . . . . Combat Hostiles . | . . . . Follow-up Attacks . | . . . . Damage Inflicted 689 | 51 198 141 299 Guns 689 | 51 198 141 299 Cannons . | . . . . Explosions . | . . . . Melee . | . . . . Ramming . | . . . . Kinetic 194 | . . 32 162 Thermal 495 | 51 198 109 137 Explosive . | . . . . Electromagnetic . | . . . . Impact . | . . . . Slashing . | . . . . Piercing . | . . . . Highest Corruption . | . . . . Average Corruption . | . . . . Corruption Purged . | . . . . Corruption Blocked . | . . . . Overload Shots . | . . . . Overflow Damage . | . . . . Projectiles . | . . . . Explosions . | . . . . Melee . | . . . . Knockbacks . | . . . . Impact . | . . . . Kinetic . | . . . . Secondary . | . . . . Self-Inflicted Damage . | . . . . Shots . | . . . . Rammed . | . . . . Targets Rammed . | . . . . Kicked . | . . . . Crushed . | . . . . Highest Temperature 194 | 60 194 69 105 Average Temperature 55 | 28 85 30 40 Received Heat Transfer 73 | . 36 37 . Siege Activations . | . . . . Martial Activations . | . . . . Shielding Activations . | . . . . Robots Disrupted . | . . . . Combat Hostiles . | . . . . Robots Corrupted . | . . . . Combat Hostiles . | . . . . Parts Fried . | . . . . Impact Corruptions . | . . . . Robots Melted . | . . . . Combat Hostiles . | . . . . Parts Melted . | . . . . Heat Transferred 1497 | 136 583 297 481 Parts Sabotaged . | . . . . Parts Stolen . | . . . . Parts Stripped . | . . . . Power Chain Reactions . | . . . . Alert | -11 -10 -9 -9 ------- Run | Yrd Mat Mat Min Maximum Alert Level . | . . . . Low Security (%) 100 | 100 100 100 100 Level 1 . | . . . . Level 2 . | . . . . Level 3 . | . . . . Level 4 . | . . . . Level 5 . | . . . . High Security . | . . . . Max Security . | . . . . Peak Influence 53 | 10 30 53 7 Initial 7 | . . . 7 Average 6 | 1 4 18 . Influence Increases 150 | 10 67 73 . Destroy 0b10 Robot/C 80 | . 40 40 . Destroy 0b10 Robot/NC 15 | 10 5 . . Destroy Leader 22 | . 2 20 . Successful Hack 24 | . 20 4 . Disable Machine 9 | . . 9 . Influence Decreases 150 | 10 67 50 23 Entered New Map 16 | . . . 16 Time Decay 134 | 10 67 50 7 Squads Dispatched . | . . . . Investigation . | . . . . Extermination . | . . . . Reinforcement . | . . . . Assault . | . . . . Garrison . | . . . . Intercept . | . . . . Searches Triggered . | . . . . Construction Impeded . | . . . . Haulers Reinforced . | . . . . Active Scanning Responses . | . . . . Cargo Convoy Interrupts . | . . . . Stealth | -11 -10 -9 -9 --------- Run | Yrd Mat Mat Min Distress Signals . | . . . . Communications Jammed . | . . . . Distress Signals . | . . . . Times Spotted 15 | . 4 2 9 Peak Tracking Total 8 | . 2 2 8 Tactical Retreats 1 | . . . 1 Traps | -11 -10 -9 -9 ------- Run | Yrd Mat Mat Min Traps Triggered . | . . . . Indirectly . | . . . . Trap Hack Attempts . | . . . . Triggered . | . . . . Disarmed . | . . . . Reprogrammed . | . . . . Reused . | . . . . Traps Extracted . | . . . . Installed . | . . . . Triggered . | . . . . Machines | -11 -10 -9 -9 ---------- Run | Yrd Mat Mat Min Machines Disabled 1 | . . 1 . Max in Single Turn 1 | . . 1 . Machines Repaired . | . . . . Machines Dismantled . | . . . . Machines Sabotaged . | . . . . Overloaded Fab Kills . | . . . . Hacking | -11 -10 -9 -9 --------- Run | Yrd Mat Mat Min Machines Accessed 5 | . 4 1 . Terminals 5 | . 4 1 . Fabricators . | . . . . Repair Stations . | . . . . Recycling Units . | . . . . Scanalyzers . | . . . . Garrison Access . | . . . . Total Hacks 8 | . 7 1 . Successful 5 | . 4 1 . Failed 3 | . 3 . . Catastrophic . | . . . . Database Lockouts . | . . . . Manual 7 | . 6 1 . Terminals 8 | . 7 1 . Fabricators . | . . . . Repair Stations . | . . . . Recycling Units . | . . . . Scanalyzers . | . . . . Garrison Access . | . . . . Terminal Hacks . | . . . . Fabricator Hacks . | . . . . Repair Station Hacks . | . . . . Recycling Unit Hacks . | . . . . Scanalyzer . | . . . . Garrison Access Hacks . | . . . . Unauthorized Hacks 5 | . 4 1 . Terminals 5 | . 4 1 . Botnet 5 | . 4 1 . Fabricators . | . . . . Repair Stations . | . . . . Recycling Units . | . . . . Scanalyzers . | . . . . Garrison Access . | . . . . Data Cores Recovered . | . . . . Used . | . . . . Hacking Detections 1 | . 1 . . Full Trace Events . | . . . . Feedback Events . | . . . . Feedback Blocked . | . . . . Robot Schematics Acquired . | . . . . Robots Built . | . . . . Authchips . | . . . . Time . | . . . . Total Robot Build Rating . | . . . . Part Schematics Acquired . | . . . . Parts Built . | . . . . Authchips . | . . . . Time . | . . . . Total Part Build Rating . | . . . . Part Studies Acquired . | . . . . Parts Repaired . | . . . . Time . | . . . . Parts Recycled . | . . . . Recycled Matter . | . . . . Retrieved Matter . | . . . . Retrieved Components . | . . . . Parts Scanalyzed . | . . . . Part Schematics Acquired . | . . . . Parts Damaged . | . . . . Bothacking | -11 -10 -9 -9 ------------ Run | Yrd Mat Mat Min Used RIF Installer . | . . . . Robots Hacked . | . . . . Non-combat . | . . . . Combat . | . . . . Robot Hacks Applied . | . . . . Relay Couplers Released . | . . . . Fabnet Peak Effective % . | . . . . Robots Rewired . | . . . . Allies Hacked . | . . . . Hacks Repelled . | . . . . Allies | -11 -10 -9 -9 -------- Run | Yrd Mat Mat Min Total Allies . | . . . . Largest Group . | . . . . Highest-Rated Group . | . . . . Highest-Rated Ally . | . . . . Total Orders . | . . . . Ally Attacks . | . . . . Total Damage . | . . . . Kills . | . . . . Allies Corrupted . | . . . . Allies Melted . | . . . . Intel | -11 -10 -9 -9 ------- Run | Yrd Mat Mat Min Active Infowar (turns) . | . . . . Robot Analysis Total . | . . . . Derelict Logs Recovered . | . . . . Drone Launches . | . . . . Drone Recoveries . | . . . . Exploration | -11 -10 -9 -9 ------------- Run | Yrd Mat Mat Min Turns Passed 790 | 35 417 178 160 Spaces Moved 636 | 19 358 165 94 Core 8 | . . . 8 Treads . | . . . . Legs . | . . . . Wheels 628 | 19 358 165 86 Hover . | . . . . Flight . | . . . . Fastest Speed 93 | 100 100 93 93 Average Speed 97 | 100 100 93 93 Slowest Speed 100 | 100 100 93 100 Overloaded Moves . | . . . . Propulsion Burnouts . | . . . . Robots Hopped . | . . . . Potential Cave-ins . | . . . . Cave-ins Triggered . | . . . . Exploration Rate (%) 21 | 2 51 15 16 Regions Visited 3 Branch Regions 1 Pre-discovered Areas . | . . . . Known Exits Taken . | . . . . Unknown Exits Taken 3 | 1 1 1 . Scrap Searched . | . . . . Spaces Dug . | . . . . Terrain Destroyed . | . . . . Melee . | . . . . Projectile . | . . . . AOE . | . . . . Terrain Rammed . | . . . . Walls Destroyed . | . . . . Machines Disabled . | . . . . Actions | -11 -10 -9 -9 --------- Run | Yrd Mat Mat Min Total 740 | 29 395 178 138 Wait 39 | . 12 . 27 Move 633 | 18 357 164 94 Hop . | . . . . Pick Up 15 | 3 7 4 1 Fast Attach . | . . . . Attach 4 | 1 1 2 . Detach . | . . . . Swap 4 | 2 1 1 . Drop 8 | 2 5 1 . Fire 37 | 3 12 6 16 Melee . | . . . . Ram . | . . . . Kick . | . . . . Crush . | . . . . Escape Stasis . | . . . . Rewire . | . . . . Trap . | . . . . Miscellaneous . | . . . . Route ------- -11/Scrapyard -10/Materials (discovered 2 exits: *Mat / [*Min]) -9/Materials -9/Mines History --------- Turn | Location | Event 4 | -11/Scrapyard | Discovered new exit (range 2) 36 | -11/Scrapyard | Entered Materials 99 | -10/Materials | Discovered new exit (range 16) 300 | -10/Materials | Build established: Mutant 447 | -10/Materials | Discovered new exit (range 5) 453 | -10/Materials | Entered another Materials area 453 | -9/Materials | Evolved 2 slots: Propulsion x1, Utility x1 582 | -9/Materials | Discovered new exit (range 15) 610 | -9/Materials | Met 8R-AWN 631 | -9/Materials | Entered Mines 645 | -9/Mines | Assembled infested the area 650 | -9/Mines | Assisted by a Guerilla fighting off Assembled 778 | -9/Mines | Core integrity fell below 50% 785 | -9/Mines | Core integrity fell below 20% 791 | -9/Mines | Destroyed by D-53 Grenadier with Mini Grenade Launcher Last Messages --------------- 00759_ Acquired 4 matter. 00761_ Acquired Targeting Computer. 00762_ Acquired 7 matter. 00768_ Lgt. Ion Engine destroyed. 00768_ Wheel destroyed. 00768_ Med. Laser destroyed. 00770_ Com. Wheel destroyed. 00773_ The unstable cave ceiling collapses. 00773_ Shield Generator destroyed. 00774_ Com. Wheel destroyed. 00774_ Autogun destroyed. 00775_ The unstable cave ceiling collapses. 00781_ T-07 Excavator destroyed. 00783_ The unstable cave ceiling collapses. 00784_ Weight Redist. System destroyed. 00785_ U-05 Engineer lays Concrete. 00787_ The unstable cave ceiling collapses. 00787_ U-05 Engineer lays Concrete. 00788_ U-05 Engineer builds a Wall. 00789_ The unstable cave ceiling collapses. Map ----- +----------------------------------------------------+ | ?????????????????????????????????????????????????? | | ?????????????????????????????????????????????????? | | ?????????????????????????????????????????????????? | | ?????????????????????????????????????????????????? | | ?????????????????????????????????????????????????? | | ?????????????????????????????????????????????????? | | ?????????????????????????????????????????????????? | | ########?????????????????????????????????????????? | | #?????????????????????????????????????????? | | "" """ #?????????????????????????????????????????? | | "" """ #?????????????????????????????????????????? | | "" """ #?????????????""??????????????????????????? | | ###########???? ??????????????????????????? | | "" """ #???? ??????????????????????????? | | "" """ ######### #???? ?????????????????????????? | | "" """ #???????# #??## ?????????????????????????? | | #???????# #### # ?????????????????????????? | | "" """ #???????# ## # ?????????????????????????? | | "" """ #???????# # ####?????????????????????? | | "" """ #??????## ###???????????????????? | | #??????# #???????????????????? | | #??????# # ##??????????????????? | | ########?????## # # #??????????????????? | | ?????????????# #??????????????????? | | ????????????# #??????????????????? | | ????????????## # @ #??????????????????? | | ?????????????## # dd! ????????????? | | ??????????????## # < % #??????????? | | ???????????????#### # #%## #??????????? | | ?????????????????### # # ## u#??????????????? | | ???????????????????###%######?? ?????????????? | | ?????????????????????#=#???????? ???????????? | | ????????????????????? #????????? ##??????????? | | ????????????????????####??????????! ??????????? | | ??????????????????????????????????? %???????????? | | ???????????????????????????????????? ???????????? | | ?????????????????????????????????????????????????? | | ?????????????????????????????????????????????????? | | ?????????????????????????????????????????????????? | | ?????????????????????????????????????????????????? | | ?????????????????????????????????????????????????? | | ?????????????????????????????????????????????????? | | ?????????????????????????????????????????????????? | | ?????????????????????????????????????????????????? | | ?????????????????????????????????????????????????? | | ?????????????????????????????????????????????????? | | ?????????????????????????????????????????????????? | | ?????????????????????????????????????????????????? | | ?????????????????????????????????????????????????? | | ?????????????????????????????????????????????????? | +----------------------------------------------------+ Best States ------------- Heat Dissipation 28 Energy Generation 10 Energy Capacity 125 Matter Stores 300 Matter Capacity 300 Sight Range 16 Terrain Scan Density 10 Additional Mass Support 6 Resistance: KI 20 Resistance: TH 20 Resistance: EX 20 Resistance: EM 20 Resistance: I 20 Resistance: S 20 Resistance: P 20 Evasion (%) 41 Offensive Hacking 10 Item Schematics ----------------- None Robot Schematics ------------------ None Fabricated ------------ Nothing Repaired ---------- Nothing Studied --------- None Alien Tech Used ----------------- None Achievements -------------- Follow The Leader Challenges ------------ None Game ------ Seed MasterBlastRay Manual? 0 Play Time 00:18:25 Cumulative 114.8 hours Start 2026.01.27 @ 18:56:22 End 2026.01.27 @ 21:02:41 Sessions 1 Manual Loads 0 Difficulty Adventurer Special Mode None Game No. 202 Rogue 187 Adventurer 10 Explorer 5 Win Type - Total 0 Types 0/0/0/0/0/0/0/0/0/0 Lore% 23 Gallery% 43 Achievement% 26 Wizard Run 0 Options --------- Layout 1 ASCII 0 Keyboard 0 Movement Mouse Keybinds 0 Fullscreen 1 Font 24/Smallcaps Map View 50x40 Zoom Use 0% Tactical HUD 1 Map Filters NONE Filters NONE Steam 1 RUN: af1b168d-597b-4942-bb0c-03e39c7634c1